Workbook

Sheet NOTES
A1: D1200869, aLIGO LLO Monuments
A2: 1 )The intent is that this document (Excel spreadsheet of coordinates AND a drawing) cover all monuments for use in aLIGO Initial Alignment at LLO.
A3: 2) Note that the Test Stand (TS1 and TS2) monuments have their own local coordinate systems, which are in general rotated (slightly) from the global coordinate frame.
A4: THESE TS MONUMENTS SHOULD EACH BE ONLY USED AS A SET AND NOT IN COMBINATION WITH THE OTHER MONUMENTS!
A6: Sources:
A7: D980499-C | B7: ASC Equipment Layout, Lousiana Site
A8: E1100374-v4 | B8: Survey Data for LLO
A9: E1100374-v4 also includes 4 unlabeled along the Y-axis, which are not included in this table
A10: SEE ALSO C972856 -- MAY HAVE PSI MONUMENTS -- PAPER ONLY IN DCC
A11: SEE ALSO C970811 -- ADDITIONAL MONUMENTS AT LLO
A12: SEE ALSO C970708 -- BLDG SURVEY MONUMENT POINTS

Sheet LLO LVEA monuments List
A1: designation | B1: X (mm) | C1: Y (mm) | D1: Z (mm) | E1: Source | F1: comment
A2: _87 | B2: =34399.8+13449-1858 -> 45990.8 | C2: =-2245.5+400.4 -> -1845.1 | E2: E1100374-v4
A3: AM 400 | B3: =-1858-1973.1 -> -3831.1 | C3: -2245.5 | E3: E1100374-v4
A4: AM 401 | B4: =-1858-18264.1 -> -20122.1 | C4: -2245.5 | E4: E1100374-v4
A5: AM 402 | B5: -22692 | C5: -2245.5 | E5: E1100374-v4
A6: AM 403 | B6: -1858 | C6: =-2245.5-1404.5 -> -3650 | E6: E1100374-v4
A7: AM 404 | B7: -1858 | C7: =-2245.5-17695.5 -> -19941 | E7: E1100374-v4
A8: AM 405 | B8: -1858 | C8: =-2245.5-20257.7 -> -22503.2 | E8: E1100374-v4
A9: IAM 92 | B9: -1858 | C9: =14449.5-1845.1+33357.8 -> 45962.2 | E9: E1100374-v4
A10: IAM-L1 | B10: -22382.3 | C10: -1854.2 | E10: D980499-C
A11: IAM-L2 | B11: -1854.2 | C11: -1854.2 | E11: D980499-C
A12: IAM-L3 | B12: -1854.2 | C12: -22089.6 | E12: D980499-C
A13: IAM-L4 | B13: 2362.2 | C13: -1854.2 | E13: D980499-C
A14: IAM-L5 | B14: 38154 | C14: -1854.2 | E14: D980499-C
A15: IAM-L6 | B15: 220000 | C15: -1854.2 | E15: D980499-C
A16: IAM-L7 | B16: -1854.2 | C16: 2362.2 | E16: D980499-C
A17: IAM-L8 | B17: -1854.2 | C17: 38154 | E17: D980499-C
A18: IAM-L9 | B18: -1854.2 | C18: 220000 | E18: D980499-C
A19: L1 IAM 376 | B19: -1858 | C19: =14449.5-1845.1 -> 12604.4 | E19: E1100374-v4
A20: L1 IAM 377 | B20: -1858 | C20: =-2245.5+400.4 -> -1845.1 | E20: E1100374-v4
A21: L1 IAM 378 | B21: -1858 | C21: -2245.5 | E21: E1100374-v4
A22: L1 IAM 379 | B22: -1858 | C22: =-2245.5-23993.9 -> -26239.4 | E22: E1100374-v4
A23: L1 IAM 380 | B23: 0 | C23: unknown | E23: E1100374-v4
A24: L1 IAM 381 | B24: =13449-1858 -> 11591 | C24: =-2245.5+400.4 -> -1845.1 | E24: E1100374-v4
A25: L1 IAM 382 | B25: =-1858-20425.5 -> -22283.5 | C25: -2245.5 | E25: E1100374-v4
A26: am 500 | B26: -1858 | C26: -120.22 | E26: E1200797-v2
A27: am 501 | B27: -1858 | C27: 0 | E27: E1200797-v2
A28: am 502 | B28: -1858 | C28: -144.37 | E28: E1200797-v2
A29: am 503 | B29: -1858 | C29: -544.4 | E29: E1200797-v2
A30: am 504 | B30: -1858 | C30: 24.23 | E30: E1200797-v2
A31: am 505 | B31: -1858 | C31: 0 | E31: E1200797-v2
A32: am 506 | B32: -1858 | C32: -183.17 | E32: E1200797-v2
A34: E1100374-v4 also includes 4 unlabeled along the Y-axis, which are not included in this table
A35: SEE ALSO C972856 -- MAY HAVE PSI MONUMENTS -- PAPER ONLY IN DCC
A36: SEE ALSO c970811 -- ADDITIONAL MONUMENTS AT LLO
A37: SEE ALSO C970708 -- BLDG SURVEY MONUMENT POINTS

Sheet TS1
A1: TEST STAND #1
B2: Incorrect Global from E1100374-v4 corrected TS1 relative coordinates per D. Cook & J. Oberling survey 6/26/2012 | D2: Corrected, approx. Global per Joe Hanson's 6/14/2012 measurements | F2: Local
A3: designation | B3: X (mm) | C3: Y (mm) | D3: X (mm) | E3: Y (mm) | F3: X (mm) | G3: Y (mm) | H3: Source | I3: comments
A4: IAM 329 (TS1-1) | B4: =6726.5+7293 -> 14019.5 | C4: =7168.4-200 -> 6968.4 | D4: =B4+817.3 -> 14836.8 | E4: =C4+5099.8 -> 12068.2 | F4: =B4-$B$13 -> 7293 | G4: =C4-$C$13 -> -200 | H4: E1100374-v4 | I4: Test Stand 1 (TS1)
A5: IAM 332 (TS1-2) | B5: =6726.5+200 -> 6926.5 | C5: =7168.4-5131 -> 2037.4 | D5: 7743.8 | E5: 7137.2 | F5: =B5-$B$13 -> 200 | G5: =C5-$C$13 -> -5131 | H5: E1100374-v4 | I5: Test Stand 1 (TS1)
A6: IAM 333 (TS1-3) | B6: =6726.5-200 -> 6526.5 | C6: =7168.4-5131 -> 2037.4 | D6: 7343.8 | E6: 7137.2 | F6: -200 | G6: -5131 | H6: E1100374-v4 | I6: Test Stand 1 (TS1)
A7: IAM 334 (TS1-4) | B7: =6726.5+200 -> 6926.5 | C7: =7168.4+7571 -> 14739.4 | D7: 7743.8 | E7: 19839.2 | F7: 200 | G7: 7571 | H7: E1100374-v4 | I7: Test Stand 1 (TS1)
A8: IAM 337 (TS1-5) | B8: =6726.5+7293 -> 14019.5 | C8: =7168.4+200 -> 7368.4 | D8: 14836.8 | E8: 12468.2 | F8: 7293 | G8: 200 | H8: E1100374-v4 | I8: Test Stand 1 (TS1)
A9: IAM 349 (TS1-6) | B9: =6726.5-200 -> 6526.5 | C9: =7168.4+7571 -> 14739.4 | D9: 7343.8 | E9: 19839.2 | F9: -200 | G9: 7571 | H9: E1100374-v4 | I9: Test Stand 1 (TS1)
A10: IAM 389 (TS1-7) | B10: =6726.5-2867 -> 3859.5 | C10: =7168.4+200 -> 7368.4 | D10: 4676.8 | E10: 12468.2 | F10: -2867 | G10: 200 | H10: E1100374-v4 | I10: Test Stand 1 (TS1)
A11: IAM 391 (TS1-8) | B11: =6726.5 -> 6726.5 | C11: =7168.4+7571 -> 14739.4 | D11: 7543.8 | E11: 19839.2 | F11: 0 | G11: 7571 | H11: E1100374-v4 | I11: Test Stand 1 (TS1)
A12: IAM 393 (TS1-9) | B12: =6726.5+7293 -> 14019.5 | C12: =7168.4 -> 7168.4 | D12: 14836.8 | E12: 12268.2 | F12: 7293 | G12: 0 | H12: E1100374-v4 | I12: Test Stand 1 (TS1)
A13: IAM 394 (TS1-10) | B13: =-1858+10500-1915.5 -> 6726.5 | C13: =14449.5-1845.1+2134-7570 -> 7168.4 | D13: =B13+817.3 -> 7543.8 | E13: =C13+5099.8 -> 12268.2 | F13: 0 | G13: 0 | H13: E1100374-v4 | I13: Test Stand 1 (TS1)
A14: IAM 397 (TS1-11) | B14: =6726.5-2867 -> 3859.5 | C14: =7168.4 -> 7168.4 | D14: =B14+817.3 -> 4676.8 | E14: =C14+5099.8 -> 12268.2 | F14: -2867 | G14: 0 | H14: E1100374-v4 | I14: Test Stand 1 (TS1)
A15: IAM 398 (TS1-12) | B15: =6726.5 -> 6726.5 | C15: =7168.4-5131 -> 2037.4 | D15: 7543.8 | E15: 7137.2 | F15: 0 | G15: -5131 | H15: E1100374-v4 | I15: Test Stand 1 (TS1)
A16: IAM 400 (TS1-13) | B16: =6726.5-2867 -> 3859.5 | C16: =7168.4-200 -> 6968.4 | D16: 4676.8 | E16: 12068.2 | F16: -2867 | G16: -200 | H16: E1100374-v4 | I16: Test Stand 1 (TS1)
A17: TS1-14 | F17: -2867 | G17: -2471.3 | H17: E1200556-v6 | I17: Test Stand 1 (TS1)
A18: TS1-15 | F18: 0 | G18: 6540.7 | H18: E1200556-v6 | I18: Test Stand 1 (TS1)
A19: TS1-16 | F19: 5594.48 | G19: 6540.7 | H19: E1200556-v6 | I19: Test Stand 1 (TS1)
A20: TS1-17 | F20: 5594.48 | G20: 5390.3 | H20: E1200556-v6 | I20: Test Stand 1 (TS1)
A21: TS1-18 | F21: 0 | G21: 5390.3 | H21: E1200556-v6 | I21: Test Stand 1 (TS1)
A22: TS1-19 | F22: -183.94 | G22: 7571 | H22: E1200556-v6 | I22: Test Stand 1 (TS1)
A23: TS1-20 | F23: -183.94 | G23: 0 | H23: E1200556-v6 | I23: Test Stand 1 (TS1)
A24: TS1-21 | F24: =F17 -> -2867 | G24: 10000 | H24: D. Cook 6/28/2012 email | I24: Test Stand 1 (TS1); Y-coordinate is only approximate!
A26: BS HR | B26: -202.6268921 | C26: -183.8858948 | F26: =C26 -> -183.8858948 | G26: =-B26 -> 202.6268921
A27: BS AR | B27: -160.32 | C27: -226.23 | F27: =C27 -> -226.23 | G27: =-B27 -> 160.32

Sheet TS2
A1: TEST STAND #2
B2: Incorrect Global from E1100374-v4 | E2: Local
A3: designation | B3: X (mm) | C3: Y (mm) | D3: Z (mm) | E3: X (mm) | F3: Y (mm) | G3: Source | H3: comment
A4: IAM 326 (TS2-1) | B4: =9633-2872 -> 6761 | C4: =3703.9-200 -> 3503.9 | E4: =B4-$B$16 -> -2872 | F4: =C4-$C$16 -> -200 | G4: E1100374-v4 | H4: Test Stand 2 (TS2)
A5: IAM 327 (TS2-2) | B5: =9633+200 -> 9833 | C5: =3703.9+7289 -> 10992.9 | E5: =B5-$B$16 -> 200 | F5: =C5-$C$16 -> 7289 | G5: E1100374-v4 | H5: Test Stand 2 (TS2)
A6: IAM 330 (TS2-3) | B6: =9633-2872 -> 6761 | C6: =3703.9+200 -> 3903.9 | E6: -2872 | F6: 200 | G6: E1100374-v4 | H6: Test Stand 2 (TS2)
A7: IAM 338 (TS2-4) | B7: =9633+7570 -> 17203 | C7: =3703.9+200 -> 3903.9 | E7: 7570 | F7: 200 | G7: E1100374-v4 | H7: Test Stand 2 (TS2)
A8: IAM 342 (TS2-5) | B8: =9633-200 -> 9433 | C8: =3703.9-5133 -> -1429.1 | E8: -200 | F8: -5133 | G8: E1100374-v4 | H8: Test Stand 2 (TS2)
A9: IAM 346 (TS2-6) | B9: =9633+7570 -> 17203 | C9: =3703.9-200 -> 3503.9 | E9: 7570 | F9: -200 | G9: E1100374-v4 | H9: Test Stand 2 (TS2)
A10: IAM 350 (TS2-7) | B10: =9633+200 -> 9833 | C10: =3703.9-5133 -> -1429.1 | E10: 200 | F10: -5133 | G10: E1100374-v4 | H10: Test Stand 2 (TS2)
A11: IAM 385 (TS2-8) | B11: =9633-200 -> 9433 | C11: =3703.9+7289 -> 10992.9 | E11: -200 | F11: 7289 | G11: E1100374-v4 | H11: Test Stand 2 (TS2)
A12: IAM 390 (TS2-9) | B12: =9633-2872 -> 6761 | C12: =3703.9 -> 3703.9 | E12: -2872 | F12: 0 | G12: E1100374-v4 | H12: Test Stand 2 (TS2)
A13: IAM 392 (TS2-10) | B13: =9633+7570 -> 17203 | C13: =3703.9 -> 3703.9 | E13: 7570 | F13: 0 | G13: E1100374-v4 | H13: Test Stand 2 (TS2)
A14: IAM 395 (TS2-11) | B14: =9633 -> 9633 | C14: =3703.9+7289 -> 10992.9 | E14: 0 | F14: 7289 | G14: E1100374-v4 | H14: Test Stand 2 (TS2)
A15: IAM 396 (TS2-12) | B15: =9633 -> 9633 | C15: =3703.9-5133 -> -1429.1 | E15: 0 | F15: -5133 | G15: E1100374-v4 | H15: Test Stand 2 (TS2)
A16: IAM 399 (TS2-13) | B16: =-1858+10500+991 -> 9633 | C16: =14449.5-1845.1-1611.5-7289 -> 3703.9 | E16: 0 | F16: 0 | G16: E1100374-v4 | H16: Test Stand 2 (TS2)

Sheet LVEA interior wall
A1: LLO LVEA interior wall perimeter
A2: for LVEA interior dimensions and wall thickness see
A3: LA-A-101, Rev 1 D960867-01-O Corner Station, LVEA Floor Plan
A4: LA-A-102, Rev 1 D960868-01-O Corner Station, LVEA Partial Floor Plan, Sheet 1
B6: Relative to the Beam Tube Centerlines | F6: Relative to TS1 center
B7: I-beam Centerline | D7: Face Of Wall (FOW) | F7: Face Of Wall (FOW)
A8: point | B8: X (ft) | C8: Y (ft) | D8: X (mm) | E8: Y (mm) | F8: X (mm) | G8: Y (mm)
A9: A | B9: -15 | C9: -115 | D9: =(B9*12+15*SIGN(B9))*25.4 -> -4953 | E9: =(C9*12+15*SIGN(C9))*25.4 -> -35433 | F9: =D9-'TS1'!$B$13 -> -11679.5 | G9: =E9-'TS1'!$C$13 -> -42601.4
A10: B | B10: -15 | C10: -15 | D10: =(B10*12+15*SIGN(B10))*25.4 -> -4953 | E10: =(C10*12+15*SIGN(C10))*25.4 -> -4953 | F10: =D10-'TS1'!$B$13 -> -11679.5 | G10: =E10-'TS1'!$C$13 -> -12121.4
A11: C | B11: -135 | C11: -15 | D11: -41529 | E11: -4953 | F11: =D11-'TS1'!$B$13 -> -48255.5 | G11: =E11-'TS1'!$C$13 -> -12121.4
A12: D | B12: -135 | C12: 25 | D12: -41529 | E12: 8001 | F12: =D12-'TS1'!$B$13 -> -48255.5 | G12: =E12-'TS1'!$C$13 -> 832.6
A13: E | B13: -15 | C13: 25 | D13: -4953 | E13: 8001 | F13: =D13-'TS1'!$B$13 -> -11679.5 | G13: =E13-'TS1'!$C$13 -> 832.6
A14: F | B14: -15 | C14: 165 | D14: -4953 | E14: 50673 | F14: =D14-'TS1'!$B$13 -> -11679.5 | G14: =E14-'TS1'!$C$13 -> 43504.6
A15: G | B15: 45 | C15: 165 | D15: 14097 | E15: 50673 | F15: =D15-'TS1'!$B$13 -> 7370.5 | G15: =E15-'TS1'!$C$13 -> 43504.6
A16: H | B16: 45 | C16: 45 | D16: 14097 | E16: 14097 | F16: =D16-'TS1'!$B$13 -> 7370.5 | G16: =E16-'TS1'!$C$13 -> 6928.6
A17: I | B17: 165 | C17: 45 | D17: 50673 | E17: 14097 | F17: =D17-'TS1'!$B$13 -> 43946.5 | G17: =E17-'TS1'!$C$13 -> 6928.6
A18: J | B18: 165 | C18: -15 | D18: 50673 | E18: -4953 | F18: =D18-'TS1'!$B$13 -> 43946.5 | G18: =E18-'TS1'!$C$13 -> -12121.4
A19: K | B19: 45 | C19: -15 | D19: 14097 | E19: -4953 | F19: =D19-'TS1'!$B$13 -> 7370.5 | G19: =E19-'TS1'!$C$13 -> -12121.4
A20: L | B20: 45 | C20: -35 | D20: 14097 | E20: -11049 | F20: =D20-'TS1'!$B$13 -> 7370.5 | G20: =E20-'TS1'!$C$13 -> -18217.4
A21: M | B21: 25 | C21: -35 | D21: 8001 | E21: -11049 | F21: =D21-'TS1'!$B$13 -> 1274.5 | G21: =E21-'TS1'!$C$13 -> -18217.4
A22: N | B22: 25 | C22: -115 | D22: 8001 | E22: -35433 | F22: =D22-'TS1'!$B$13 -> 1274.5 | G22: =E22-'TS1'!$C$13 -> -42601.4
A23: A | B23: =B9 -> -15 | C23: =C9 -> -115 | D23: =D9 -> -4953 | E23: =E9 -> -35433 | F23: =D23-'TS1'!$B$13 -> -11679.5 | G23: =E23-'TS1'!$C$13 -> -42601.4
A26: Beam Tube Centerlines = Global Axes
A28: point | B28: X (mm) | C28: Y (mm)
A29: A | B29: =D11 -> -41529 | C29: 0 | D29: x-axis
A30: B | B30: =D17 -> 50673 | C30: 0 | D30: x-axis
A31: A | B31: 0 | C31: =E9 -> -35433 | D31: y-axis
A32: B | B32: 0 | C32: =E14 -> 50673 | D32: y-axis
A35: The LVEA Wall in proximity to TS#1 per Joe Hanson's measurements:
A36: =(21*12+6)*25.4 -> 6553.2 | B36: 10000
A37: =A36 -> 6553.2 | B37: =6*12*25.4 -> 1828.8
A38: 18000 | B38: =B37 -> 1828.8

Sheet TS structure
A1: depiction of the planform of the test stand
A3: point | B3: X | C3: Y
A4: A | B4: =-2082.8/2 -> -1041.4 | C4: =2641.6/2 -> 1320.8 | D4: pad1
A5: B | B5: =B4+495.3 -> -546.1 | C5: =C4 -> 1320.8
A6: C | B6: =B5 -> -546.1 | C6: =C5-495.3 -> 825.5
A7: D | B7: =B4 -> -1041.4 | C7: =C6 -> 825.5
A8: A | B8: =B4 -> -1041.4 | C8: =C4 -> 1320.8
A9: A | B9: =B4+2082.8-495.3 -> 546.1 | C9: =C4 -> 1320.8 | D9: pad2
A10: B | B10: =B5+2082.8-495.3 -> 1041.4 | C10: =C5 -> 1320.8
A11: C | B11: =B6+2082.8-495.3 -> 1041.4 | C11: =C6 -> 825.5
A12: D | B12: =B7+2082.8-495.3 -> 546.1 | C12: =C7 -> 825.5
A13: A | B13: =B8+2082.8-495.3 -> 546.1 | C13: =C8 -> 1320.8
A14: A | B14: =B9 -> 546.1 | C14: =C4-2641.6+495.3 -> -825.5 | D14: pad3
A15: B | B15: =B10 -> 1041.4 | C15: =C5-2641.6+495.3 -> -825.5
A16: C | B16: =B11 -> 1041.4 | C16: =C6-2641.6+495.3 -> -1320.8
A17: D | B17: =B12 -> 546.1 | C17: =C7-2641.6+495.3 -> -1320.8
A18: A | B18: =B13 -> 546.1 | C18: =C8-2641.6+495.3 -> -825.5
A19: A | B19: =B4 -> -1041.4 | C19: =C14 -> -825.5 | D19: pad 4
A20: B | B20: =B5 -> -546.1 | C20: =C15 -> -825.5
A21: C | B21: =B6 -> -546.1 | C21: =C16 -> -1320.8
A22: D | B22: =B7 -> -1041.4 | C22: =C17 -> -1320.8
A23: A | B23: =B8 -> -1041.4 | C23: =C18 -> -825.5
A24: A | B24: =-1981.2/2 -> -990.6 | C24: =2438.4/2 -> 1219.2 | D24: left support tube
A25: B | B25: =B24+304.8 -> -685.8 | C25: =C24 -> 1219.2
A26: C | B26: =B25 -> -685.8 | C26: =-2438.4/2 -> -1219.2
A27: D | B27: =B24 -> -990.6 | C27: =C26 -> -1219.2
A28: A | B28: =B24 -> -990.6 | C28: =C24 -> 1219.2
A29: A | B29: =B24+1981.2-304.8 -> 685.8 | C29: =C24 -> 1219.2 | D29: right support tube
A30: B | B30: =B25+1981.2-304.8 -> 990.6 | C30: =C25 -> 1219.2
A31: C | B31: =B26+1981.2-304.8 -> 990.6 | C31: =C26 -> -1219.2
A32: D | B32: =B27+1981.2-304.8 -> 685.8 | C32: =C27 -> -1219.2
A33: A | B33: =B28+1981.2-304.8 -> 685.8 | C33: =C28 -> 1219.2
A34: A | B34: =B25 -> -685.8 | C34: =C25 -> 1219.2 | D34: crossbeam 1
A35: B | B35: =B29 -> 685.8 | C35: =C29 -> 1219.2
A36: C | B36: =B35 -> 685.8 | C36: =C35-304.8 -> 914.4
A37: D | B37: =B34 -> -685.8 | C37: =C36 -> 914.4
A38: A | B38: =B34 -> -685.8 | C38: =C34 -> 1219.2
A39: A | B39: =B34 -> -685.8 | C39: =C34-2438.4+304.8 -> -914.4 | D39: crossbeam 2
A40: B | B40: =B35 -> 685.8 | C40: =C35-2438.4+304.8 -> -914.4
A41: C | B41: =B36 -> 685.8 | C41: =C36-2438.4+304.8 -> -1219.2
A42: D | B42: =B37 -> -685.8 | C42: =C37-2438.4+304.8 -> -1219.2
A43: A | B43: =B38 -> -685.8 | C43: =C38-2438.4+304.8 -> -914.4

Sheet Chambers
A1: Simple representation of BSC chamber for monument sketch
A2: =104.5*25.4/2 -> 1327.15 | B2: R, lower BSC shell ID, mm | G2: =53.19*25.4 -> 1351.026 | H2: L1, HAM center to bellow flange, mm
A3: =60.5*25.4 -> 1536.7 | B3: D, main port ID, mm | G3: =48*25.4 -> 1219.2 | H3: L2, HAM center to flange, mm
A4: =113.75*25.4 -> 2889.25 | B4: L, main port flange-to-flange distance, mm | G4: =75*25.4 -> 1905 | H4: L3, HAM main access flange-to-flange, mm
G5: =60.5*25.4 -> 1536.7 | H5: D1, HAM main beam port ID, mm
G6: =84.25*25.4 -> 2139.95 | H6: D2, HAM main access port ID, mm
A8: LBSC2 | C8: LBSC1 | E8: LBSC3 | G8: LHAM at origin | I8: LHAM3 | K8: LHAM2 | M8: LHAM1 | O8: LHAM4 | Q8: LHAM5 | S8: LHAM6
A9: X (mm) | B9: Y (mm) | C9: X (mm) | D9: Y (mm) | E9: X (mm) | F9: Y (mm) | G9: X (mm) | H9: Y (mm) | I9: X (mm) | J9: Y (mm) | K9: X (mm) | L9: Y (mm) | M9: X (mm) | N9: Y (mm) | O9: X (mm) | P9: Y (mm) | Q9: X (mm) | R9: Y (mm) | S9: X (mm) | T9: Y (mm)
A10: =-D_BSC/2 -> -768.35 | B10: =SQRT(R_BSC^2-D_BSC^2/4) -> 1082.111547 | C10: =A10 -> -768.35 | D10: =B10+4580 -> 5662.111547 | E10: =A10+4580 -> 3811.65 | F10: =B10 -> 1082.111547 | G10: =-D2_HAM/2 -> -1069.975 | H10: =D1_HAM/2 -> 768.35 | I10: =G10-3831 -> -4900.975 | J10: =H10 -> 768.35 | K10: =G10-20122 -> -21191.975 | L10: =H10 -> 768.35 | M10: =G10-22692 -> -23761.975 | N10: =H10 -> 768.35 | O10: =H10 -> 768.35 | P10: =G10-3831 -> -4900.975 | Q10: =H10 -> 768.35 | R10: =G10-20122 -> -21191.975 | S10: =H10 -> 768.35 | T10: =G10-22692 -> -23761.975
A11: =A10 -> -768.35 | B11: =L_BSC/2 -> 1444.625 | C11: =A11 -> -768.35 | D11: =B11+4580 -> 6024.625 | E11: =A11+4580 -> 3811.65 | F11: =B11 -> 1444.625 | G11: =G10 -> -1069.975 | H11: =L3_HAM/2 -> 952.5 | I11: =G11-3831 -> -4900.975 | J11: =H11 -> 952.5 | K11: =G11-20122 -> -21191.975 | L11: =H11 -> 952.5 | M11: =G11-22692 -> -23761.975 | N11: =H11 -> 952.5 | O11: =H11 -> 952.5 | P11: =G11-3831 -> -4900.975 | Q11: =H11 -> 952.5 | R11: =G11-20122 -> -21191.975 | S11: =H11 -> 952.5 | T11: =G11-22692 -> -23761.975
A12: =-A11 -> 768.35 | B12: =B11 -> 1444.625 | C12: 768.35 | D12: 6024.625 | E12: 5348.35 | F12: 1444.625 | G12: =-G11 -> 1069.975 | H12: =H11 -> 952.5 | I12: -2761.025 | J12: 952.5 | K12: -19052.025 | L12: 952.5 | M12: -21622.025 | N12: 952.5 | O12: 952.5 | P12: -2761.025 | Q12: 952.5 | R12: -19052.025 | S12: 952.5 | T12: -21622.025
A13: =A12 -> 768.35 | B13: =B10 -> 1082.111547 | C13: 768.35 | D13: 5662.111547 | E13: 5348.35 | F13: 1082.111547 | G13: =-G10 -> 1069.975 | H13: =H10 -> 768.35 | I13: -2761.025 | J13: 768.35 | K13: -19052.025 | L13: 768.35 | M13: -21622.025 | N13: 768.35 | O13: 768.35 | P13: -2761.025 | Q13: 768.35 | R13: -19052.025 | S13: 768.35 | T13: -21622.025
A14: =B13 -> 1082.111547 | B14: =A13 -> 768.35 | C14: 1082.111547 | D14: 5348.35 | E14: 5662.111547 | F14: 768.35 | G14: =L1_HAM -> 1351.026 | H14: =H13 -> 768.35 | I14: -2479.974 | J14: 768.35 | K14: -18770.974 | L14: 768.35 | M14: -21340.974 | N14: 768.35 | O14: 768.35 | P14: -2479.974 | Q14: 768.35 | R14: -18770.974 | S14: 768.35 | T14: -21340.974
A15: =L_BSC/2 -> 1444.625 | B15: =B14 -> 768.35 | C15: 1444.625 | D15: 5348.35 | E15: 6024.625 | F15: 768.35 | G15: =G14 -> 1351.026 | H15: =-H14 -> -768.35 | I15: -2479.974 | J15: -768.35 | K15: -18770.974 | L15: -768.35 | M15: -21340.974 | N15: -768.35 | O15: -768.35 | P15: -2479.974 | Q15: -768.35 | R15: -18770.974 | S15: -768.35 | T15: -21340.974
A16: =A15 -> 1444.625 | B16: =-B15 -> -768.35 | C16: 1444.625 | D16: 3811.65 | E16: 6024.625 | F16: -768.35 | G16: =G13 -> 1069.975 | H16: =H15 -> -768.35 | I16: -2761.025 | J16: -768.35 | K16: -19052.025 | L16: -768.35 | M16: -21622.025 | N16: -768.35 | O16: -768.35 | P16: -2761.025 | Q16: -768.35 | R16: -19052.025 | S16: -768.35 | T16: -21622.025
A17: =A14 -> 1082.111547 | B17: =B16 -> -768.35 | C17: 1082.111547 | D17: 3811.65 | E17: 5662.111547 | F17: -768.35 | G17: =G16 -> 1069.975 | H17: =-H12 -> -952.5 | I17: -2761.025 | J17: -952.5 | K17: -19052.025 | L17: -952.5 | M17: -21622.025 | N17: -952.5 | O17: -952.5 | P17: -2761.025 | Q17: -952.5 | R17: -19052.025 | S17: -952.5 | T17: -21622.025
A18: =-B17 -> 768.35 | B18: =-A17 -> -1082.111547 | C18: 768.35 | D18: 3497.888453 | E18: 5348.35 | F18: -1082.111547 | G18: =-G17 -> -1069.975 | H18: =H17 -> -952.5 | I18: -4900.975 | J18: -952.5 | K18: -21191.975 | L18: -952.5 | M18: -23761.975 | N18: -952.5 | O18: -952.5 | P18: -4900.975 | Q18: -952.5 | R18: -21191.975 | S18: -952.5 | T18: -23761.975
A19: =A18 -> 768.35 | B19: =-L_BSC/2 -> -1444.625 | C19: 768.35 | D19: 3135.375 | E19: 5348.35 | F19: -1444.625 | G19: =G18 -> -1069.975 | H19: =H16 -> -768.35 | I19: -4900.975 | J19: -768.35 | K19: -21191.975 | L19: -768.35 | M19: -23761.975 | N19: -768.35 | O19: -768.35 | P19: -4900.975 | Q19: -768.35 | R19: -21191.975 | S19: -768.35 | T19: -23761.975
A20: =-A19 -> -768.35 | B20: =B19 -> -1444.625 | C20: -768.35 | D20: 3135.375 | E20: 3811.65 | F20: -1444.625 | G20: =-L2_HAM -> -1219.2 | H20: =H19 -> -768.35 | I20: -5050.2 | J20: -768.35 | K20: -21341.2 | L20: -768.35 | M20: -23911.2 | N20: -768.35 | O20: -768.35 | P20: -5050.2 | Q20: -768.35 | R20: -21341.2 | S20: -768.35 | T20: -23911.2
A21: =A20 -> -768.35 | B21: =B18 -> -1082.111547 | C21: -768.35 | D21: 3497.888453 | E21: 3811.65 | F21: -1082.111547 | G21: =G20 -> -1219.2 | H21: =-H20 -> 768.35 | I21: -5050.2 | J21: 768.35 | K21: -21341.2 | L21: 768.35 | M21: -23911.2 | N21: 768.35 | O21: 768.35 | P21: -5050.2 | Q21: 768.35 | R21: -21341.2 | S21: 768.35 | T21: -23911.2
A22: =B21 -> -1082.111547 | B22: =A21 -> -768.35 | C22: -1082.111547 | D22: 3811.65 | E22: 3497.888453 | F22: -768.35 | G22: =G10 -> -1069.975 | H22: =H10 -> 768.35 | I22: -4900.975 | J22: 768.35 | K22: -21191.975 | L22: 768.35 | M22: -23761.975 | N22: 768.35 | O22: 768.35 | P22: -4900.975 | Q22: 768.35 | R22: -21191.975 | S22: 768.35 | T22: -23761.975
A23: =-L_BSC/2 -> -1444.625 | B23: =B22 -> -768.35 | C23: -1444.625 | D23: 3811.65 | E23: 3135.375 | F23: -768.35
A24: =A23 -> -1444.625 | B24: =-B23 -> 768.35 | C24: -1444.625 | D24: 5348.35 | E24: 3135.375 | F24: 768.35
A25: =A22 -> -1082.111547 | B25: =B24 -> 768.35 | C25: -1082.111547 | D25: 5348.35 | E25: 3497.888453 | F25: 768.35
A26: =-B25 -> -768.35 | B26: =-A25 -> 1082.111547 | C26: -768.35 | D26: 5662.111547 | E26: 3811.65 | F26: 1082.111547
